fUST/lending_fUST_20240710
["ID","MTS","AMOUNT","RATE_DAILY","PERIOD"]
[331585706,1720554633085,-300.0,0.00024997,2]
[331585707,1720554633095,-1179.32794312,0.00025,4]
[331585735,1720554638011,-476.7511688,0.00025,4]
[331585839,1720555680560,190.0,0.00027397,120]
[331585840,1720555680615,165.31,0.00027397,120]
[331585858,1720555832151,-308.25554532,0.00020343,2]
[331585859,1720555832161,-155.06024926,0.00020543,2]
[331585860,1720555832171,-629.153089,0.00021096,2]
[331585861,1720555832180,-176.064289,0.00021096,2]
[331585862,1720555832189,-1065.65690458,0.00021917,2]
[331585863,1720555832199,-166.666666,0.00022721,2]
[331585864,1720555832208,-427.47872594,0.00023966,2]
[331585866,1720555832921,-452.63736313,0.00023966,2]
[331585868,1720555832931,-1000.0,0.00024,24]
[331585869,1720555832940,-203.0,0.0002469,2]
[331585871,1720555832950,-5292.21400908,0.00024691,2]
[331585873,1720555832960,-2305.77563638,0.00024766,2]
[331585875,1720555832969,-740.47554728,0.0002477,2]
[331585877,1720555832977,-1717.87,0.0002479,3]
[331585879,1720555832986,-1720.9232198,0.0002483,3]
[331585881,1720555832998,-604.99998376,0.0002483,3]
[331585883,1720555833012,-6688.48466544,0.0002483,3]
[331585991,1720555838058,-366.61198732,0.00024667,2]
[331585993,1720555838069,-2293.43694509,0.00024719,2]
[331585995,1720555838081,-2888.52260547,0.00024719,2]
[331585997,1720555838091,-2665.872131,0.0002483,3]
[331585999,1720555838101,-42669.32366542,0.0002484,5]
[331586001,1720555838116,-42413.01711525,0.0002484,5]
[331586003,1720555838126,-32865.4469552,0.0002484,3]
[331586005,1720555838135,-2000.0,0.0002488,2]
[331586006,1720555838146,-151.0,0.0002493,7]
[331586007,1720555838155,-4952.218645,0.0002493,7]
[331586008,1720555838165,-4952.218645,0.0002493,7]
[331586010,1720555838175,-32865.4469552,0.0002499,3]
[331586012,1720555838186,-858.94,0.0002499,3]
[331586014,1720555838195,-18950.23006453,0.00025,4]
[331586016,1720555838205,-518.07029447,0.00025,30]
[331586018,1720555838214,-225.71833691,0.00025,2]
[331586019,1720555838224,-428.24738691,0.00025,2]
[331586020,1720555838235,-5392.02527474,0.00025,2]
[331586025,1720555838293,-394.11469993,0.00025,30]
[331586027,1720555838313,-189.22156458,0.00025,2]
[331586029,1720555838323,-1000.0,0.00025,25]
[331586031,1720555838333,-151.0,0.00025,7]
[331586032,1720555838344,-4952.218645,0.00025,7]
[331586033,1720555838354,-4952.218645,0.00025,7]
[331586034,1720555838364,-4952.218645,0.00025,7]
[331586035,1720555838374,-4952.218645,0.00025,7]
[331586036,1720555838384,-154.62117811,0.00025125,2]
[331586037,1720555838394,-32865.4469552,0.0002537,3]
[331586038,1720555838404,-621.21001606,0.00025373,2]
[331586039,1720555838414,-241.3889,0.00025373,2]
[331586040,1720555838424,-9110.49991122,0.0002538,5]
[331586041,1720555838433,-151.0,0.0002538,7]
[331586042,1720555838443,-4952.218645,0.0002538,7]
[331586043,1720555838452,-4952.218645,0.0002538,7]
[331586044,1720555838462,-4952.218645,0.0002539,7]
[331586045,1720555838472,-4952.218645,0.0002539,7]
[331586046,1720555838482,-2305.77563636,0.00025399,2]
[331586047,1720555838491,-3000.0,0.000254,2]
[331586048,1720555838502,-263.85778284,0.00025409,2]
[331586049,1720555838511,-500.0,0.00025409,2]
[331586050,1720555838521,-195.10014411,0.00025409,2]
[331586051,1720555838531,-163.35043484,0.00025409,2]
[331586052,1720555838541,-397.35130491,0.00025409,2]
[331586053,1720555838550,-315.23612653,0.00025409,2]
[331586054,1720555838560,-500.0,0.00025409,2]
[331586055,1720555838570,-500.0,0.00025409,2]
[331586056,1720555838580,-500.0,0.00025409,2]
[331586057,1720555838590,-500.0,0.00025409,2]
[331586058,1720555838600,-3000.0,0.0002541,2]
[331586059,1720555838611,-151.0,0.0002541,7]
[331586060,1720555838621,-1000.0,0.0002541,5]
[331586061,1720555838631,-1000.0,0.0002541,5]
[331586062,1720555838641,-1000.0,0.0002541,5]
[331586063,1720555838651,-1000.0,0.0002541,5]
[331586064,1720555838661,-1000.0,0.0002541,5]
[331586065,1720555838677,-1000.0,0.0002541,5]
[331586066,1720555838696,-1000.0,0.0002541,5]
[331586067,1720555838707,-1000.0,0.0002541,5]
[331586068,1720555838719,-1000.0,0.0002541,5]
[331586069,1720555838730,-1000.0,0.0002541,5]
[331586070,1720555838741,-1000.0,0.0002541,5]
[331586071,1720555838753,-1000.0,0.0002541,5]
[331586072,1720555838764,-1000.0,0.0002541,5]
[331586073,1720555838774,-1000.0,0.0002541,5]
[331586074,1720555838784,-1000.0,0.0002541,5]
[331586075,1720555838793,-1000.0,0.0002541,5]
[331586076,1720555838803,-1000.0,0.0002541,5]
[331586077,1720555838812,-1000.0,0.0002541,5]
[331586078,1720555838822,-1000.0,0.0002541,5]
[331586079,1720555838832,-60.3464723,0.0002541,5]
[331586093,1720555840090,-939.6535277,0.0002541,5]
[331586094,1720555840100,-1000.0,0.0002541,5]
[331586095,1720555840109,-1000.0,0.0002541,5]
[331586096,1720555840119,-227.69570153,0.0002541,5]
[331586097,1720555840132,-772.30429847,0.0002541,5]
[331586098,1720555840142,-1000.0,0.0002541,5]
[331586099,1720555840153,-1000.0,0.0002541,5]
[331586100,1720555840163,-216.76529153,0.0002541,7]
[331586152,1720555846221,-4735.45335347,0.0002541,7]
[331586153,1720555846231,-1000.0,0.0002541,5]
[331586154,1720555846241,-1000.0,0.0002541,5]
[331586155,1720555846251,-1000.0,0.0002541,5]
[331586156,1720555846260,-1000.0,0.0002541,5]
[331586157,1720555846269,-1000.0,0.0002541,5]
[331586158,1720555846278,-1000.0,0.0002541,5]
[331586160,1720555846287,-1000.0,0.0002541,5]
[331586162,1720555846295,-1000.0,0.0002541,5]
[331586164,1720555846304,-1000.0,0.0002541,5]
[331586165,1720555846314,-1000.0,0.0002541,5]
[331586166,1720555846323,-4952.218645,0.0002541,7]
[331586167,1720555846332,-1000.0,0.0002541,5]
[331586169,1720555846341,-1000.0,0.0002541,5]
[331586171,1720555846352,-1000.0,0.0002541,5]
[331586173,1720555846362,-1000.0,0.0002541,5]
[331586174,1720555846371,-1000.0,0.0002541,5]
[331586175,1720555846380,-1000.0,0.0002541,5]
[331586176,1720555846389,-1000.0,0.0002541,5]
[331586177,1720555846398,-1000.0,0.0002541,5]
[331586178,1720555846408,-1000.0,0.0002541,5]
[331586179,1720555846418,-1000.0,0.0002541,5]
[331586180,1720555846428,-1000.0,0.0002541,5]
[331586181,1720555846438,-325.7760006,0.0002541,5]
[331586182,1720555850230,24.69,0.00027397,120]
[331586183,1720555850251,190.0,0.00027397,120]
[331586184,1720555850271,190.0,0.00027397,120]
[331586185,1720555850291,95.31,0.00027397,120]
[331586186,1720555892982,94.69,0.00027397,120]
[331586187,1720555893003,190.0,0.00027397,120]
[331586221,1720556751501,154.62117811,0.00014999,2]
[331586245,1720557032160,-351.83344089,0.00019039,2]
[331586246,1720557032170,-293.45867215,0.0002,2]
[331586247,1720557032179,-1913.40843699,0.00021095,2]
[331586248,1720557032190,-1065.65690458,0.00021917,2]
[331586249,1720557032199,-1000.0,0.00022,8]
[331586250,1720557032208,-162.425862,0.00022281,2]
[331586251,1720557032218,-166.921018,0.00022641,2]
[331586252,1720557032227,-1000.0,0.00023,23]
[331586253,1720557032236,-621.21001621,0.00023296,2]
[331586254,1720557032245,-1000.0,0.00024,24]
[331586255,1720557032254,-620.06050081,0.00024461,2]
[331586256,1720557032263,-3081.02605815,0.0002448,2]
[331586257,1720557032272,-880.11608907,0.00024481,2]
[331586258,1720557032281,-1000.0,0.00025,25]
[331586259,1720557032290,-1010.535041,0.00025,2]
[331586260,1720557032299,-153.0,0.00025025,2]
[331586261,1720557032365,-153.0,0.00025025,2]
[331586262,1720557032374,-153.0,0.00025025,2]
[331586263,1720557032383,-366.61198732,0.00025109,2]
[331586264,1720557032392,-307.7104676,0.00025134,2]
[331586265,1720557032401,-435.4329661,0.00025134,2]
[331586266,1720557032410,-153.0,0.00025134,2]
[331586267,1720557032419,-153.0,0.00025134,2]
[331586268,1720557032428,-153.0,0.00025134,2]
[331586269,1720557032438,-306.0,0.00025134,2]
[331586270,1720557032448,-153.0,0.00025135,2]
[331586271,1720557032459,-306.7904281,0.00025135,2]
[331586272,1720557032468,-153.0,0.00025135,2]
[331586273,1720557032478,-153.0,0.00025135,2]
[331586274,1720557032490,-5292.21400908,0.00025153,2]
[331586275,1720557032500,-153.0,0.00025184,2]
[331586276,1720557032510,-153.0,0.00025184,2]
[331586277,1720557032519,-153.0,0.00025184,2]
[331586278,1720557032530,-397.91610387,0.00025308,2]
[331586279,1720557032539,-2000.0,0.00025371,2]
[331586280,1720557032549,-241.3889,0.00025373,2]
[331586281,1720557032560,-1844.62050912,0.00025381,2]
[331586282,1720557032569,-3000.0,0.000254,2]
[331586283,1720557032578,-153.0,0.00025408,2]
[331586284,1720557032587,-153.0,0.00025408,2]
[331586285,1720557032596,-153.0,0.00025408,2]
[331586286,1720557032606,-153.0,0.00025408,2]
[331586287,1720557032618,-153.0,0.00025408,2]
[331586288,1720557032627,-153.0,0.00025408,2]
[331586289,1720557032636,-153.0,0.00025408,2]
[331586290,1720557032646,-431.2097649,0.00025408,2]
[331586291,1720557032656,-153.0,0.00025408,2]
[331586292,1720557032665,-153.0,0.00025408,2]
[331586293,1720557032674,-153.0,0.00025408,2]
[331586294,1720557032684,-153.0,0.00025408,2]
[331586295,1720557032693,-153.0,0.00025408,2]
[331586296,1720557032702,-153.0,0.00025408,2]
[331586297,1720557032712,-153.0,0.00025408,2]
[331586298,1720557032723,-153.0,0.00025408,2]
[331586299,1720557032734,-153.0,0.00025408,2]
[331586300,1720557032744,-153.0,0.00025408,2]
[331586301,1720557032756,-153.0,0.00025408,2]
[331586302,1720557032767,-153.0,0.00025408,2]
[331586303,1720557032776,-306.0,0.00025408,2]
[331586304,1720557032785,-153.0,0.00025409,2]
[331586305,1720557032795,-153.0,0.00025409,2]
[331586306,1720557032804,-153.0,0.00025409,2]
[331586307,1720557032814,-153.0,0.00025409,2]
[331586308,1720557032823,-153.0,0.00025409,2]
[331586309,1720557032833,-153.0,0.00025409,2]
[331586310,1720557032842,-153.0,0.00025409,2]
[331586311,1720557032852,-153.0,0.00025409,2]
[331586312,1720557032862,-3000.0,0.0002541,2]
[331586313,1720557032872,-155.0,0.0002542,8]
[331586314,1720557032881,-3000.0,0.0002542,2]
[331586315,1720557032891,-3000.0,0.0002543,2]
[331586316,1720557032901,-3000.0,0.0002544,2]
[331586317,1720557032910,-3000.0,0.0002545,2]
[331586319,1720557032922,-3000.0,0.0002546,2]
[331586320,1720557032934,-185.9,0.00025461,3]
[331586321,1720557032944,-3000.0,0.0002547,2]
[331586322,1720557032954,-1301.26,0.00025471,3]
[331586323,1720557032964,-743.58,0.00025471,3]
[331586324,1720557032976,-371.79,0.00025471,3]
[331586325,1720557032986,-185.9,0.00025471,3]
[331586326,1720557032995,-557.71,0.00025471,3]
[331586328,1720557033007,-6835.34742269,0.00025471,3]
[331586384,1720557038265,-632.908291,0.00021096,2]
[331586385,1720557038275,-3437.26257731,0.00025471,3]
[331586386,1720557038284,-151.0,0.0002548,7]
[331586387,1720557038297,-3000.0,0.0002548,2]
[331586389,1720557038307,-9110.49991122,0.00025481,5]
[331586390,1720557038316,-115339.276853,0.00025481,3]
[331586391,1720557038327,-4456.99678,0.00025481,7]
[331586392,1720557038337,-4456.99678,0.00025481,7]
[331586393,1720557038347,-500.0,0.0002549,2]
[331586394,1720557038356,-263.85778284,0.0002549,2]
[331586395,1720557038366,-195.10014411,0.0002549,2]
[331586396,1720557038376,-500.0,0.0002549,2]
[331586397,1720557038386,-163.35043484,0.0002549,2]
[331586398,1720557038395,-397.35130491,0.0002549,2]
[331586399,1720557038405,-300.0,0.0002549,2]
[331586401,1720557038415,-500.0,0.0002549,2]
[331586403,1720557038425,-500.0,0.0002549,2]
[331586405,1720557038436,-294.57083796,0.0002549,2]
[331586407,1720557038446,-3000.0,0.0002549,2]
[331586409,1720557038456,-1000.0,0.00025491,5]
[331586411,1720557038466,-1000.0,0.00025491,5]
[331586412,1720557038475,-1000.0,0.00025491,5]
[331586413,1720557038486,-1000.0,0.00025491,5]
[331586414,1720557038495,-1000.0,0.00025491,5]
[331586415,1720557038506,-1000.0,0.00025491,5]
[331586416,1720557038515,-1000.0,0.00025491,5]
[331586417,1720557038525,-1000.0,0.00025491,5]
[331586418,1720557038535,-1000.0,0.00025491,5]
[331586419,1720557038544,-1000.0,0.00025491,5]
[331586420,1720557038554,-1000.0,0.00025491,5]
[331586421,1720557038564,-1000.0,0.00025491,5]
[331586422,1720557038573,-1000.0,0.00025491,5]
[331586423,1720557038583,-1000.0,0.00025491,5]
[331586424,1720557038593,-1000.0,0.00025491,5]
[331586425,1720557038602,-1000.0,0.00025491,5]
[331586426,1720557038611,-1000.0,0.00025491,5]
[331586427,1720557038621,-1000.0,0.00025491,5]
[331586428,1720557038685,-1000.0,0.00025491,5]
[331586429,1720557038695,-1000.0,0.00025491,5]
[331586430,1720557038706,-1000.0,0.00025491,5]
[331586431,1720557038716,-1000.0,0.00025491,5]
[331586432,1720557038726,-1000.0,0.00025491,5]
[331586433,1720557038736,-1000.0,0.00025491,5]
[331586434,1720557038746,-1000.0,0.00025491,5]
[331586435,1720557038756,-1000.0,0.00025491,5]
[331586436,1720557038767,-1000.0,0.00025491,5]
[331586437,1720557038776,-1000.0,0.00025491,5]
[331586438,1720557038787,-1000.0,0.00025491,5]
[331586439,1720557038796,-1000.0,0.00025491,5]
[331586440,1720557038806,-1000.0,0.00025491,5]
[331586441,1720557038816,-1000.0,0.00025491,5]
[331586442,1720557038826,-1000.0,0.00025491,5]
[331586443,1720557038836,-1000.0,0.00025491,5]
[331586444,1720557038846,-1000.0,0.00025491,5]
[331586445,1720557038856,-1000.0,0.00025491,5]
[331586446,1720557038867,-461.730335,0.00025491,5]
[331586447,1720557038876,-151.0,0.00025491,7]
[331586448,1720557038886,-151.0,0.00025491,7]
[331586449,1720557038896,-151.0,0.00025491,7]
[331586450,1720557038905,-151.0,0.00025491,7]
[331586451,1720557038916,-4456.99678,0.00025491,7]
[331586452,1720557038926,-4456.99678,0.00025491,7]
[331586453,1720557038936,-4456.99678,0.00025491,7]
[331586454,1720557038946,-4456.99678,0.00025491,7]
[331586455,1720557038956,-4456.99678,0.00025491,7]
[331586456,1720557038966,-4456.99678,0.00025491,7]
[331586457,1720557038976,-4456.99678,0.00025491,7]
[331586458,1720557038987,-4456.99678,0.00025491,7]
[331586459,1720557038997,-107610.71883281,0.00025491,3]
[331586460,1720557039022,-7728.55802019,0.00025491,3]
[331586461,1720557039032,-2213.79064136,0.000255,2]
[331586462,1720557039042,-373.0,0.000255,2]
[331586463,1720557039052,-3000.0,0.000255,2]
[331586464,1720557039070,-150.0,0.000255,2]
[331586465,1720557039092,-4456.99678,0.000255,7]
[331586466,1720557039112,-4456.99678,0.000255,7]
[331586467,1720557039132,-1000.0,0.000255,2]
[331586468,1720557039155,-151.0,0.00025501,7]
[331586469,1720557039173,-151.0,0.00025501,7]
[331586470,1720557039193,-4456.99678,0.00025501,7]
[331586471,1720557039210,-4456.99678,0.00025501,7]
[331586472,1720557039225,-8404.66421845,0.00025501,2]
[331586485,1720557040553,-850.520947,0.00025501,5]
[331586534,1720557431227,308.1,0.00015501,2]
[331586541,1720557513699,2134.25192714,0.00014999,2]
[331586545,1720557569893,790.41155196,0.00014999,2]
[331586547,1720557658723,731.17900406,0.00014999,2]
[331586554,1720557750683,270.81949526,0.00014999,2]
[331586556,1720557779056,154.62117811,0.00014999,2]
[331586559,1720557862181,1042.68213866,0.00015,2]
[331586560,1720557876225,833.0400645,0.00014999,2]
[331586561,1720557987900,154.82195475,0.00014999,2]
[331586564,1720558007206,1042.68213866,0.00015,2]
[331586576,1720558232455,-491.31326196,0.00015995,2]
[331586577,1720558232464,-154.82195475,0.00016255,2]
[331586578,1720558232473,-434.63572268,0.0001818,2]
[331586579,1720558232482,-154.77557542,0.00018798,2]
[331586580,1720558232491,-190.7238018,0.0002,2]
[331586581,1720558232500,-166.666666,0.00020036,2]
[331586582,1720558232509,-188.006038,0.00020276,2]
[331586583,1720558232518,-683.121883,0.00021096,2]
[331586584,1720558232527,-1065.65690458,0.00021917,2]
[331586585,1720558232536,-247.17796158,0.00022,2]
[331586586,1720558232545,-162.316199,0.00022071,2]
[331586587,1720558232554,-24900.0,0.00022241,2]
[331586588,1720558232563,-215.09979109,0.00022278,2]
[331586589,1720558232582,-166.666666,0.00022767,2]
[331586590,1720558232594,-1229.95449669,0.00022942,2]
[331586591,1720558232606,-1055.17043804,0.00023453,2]
[331586592,1720558232616,-429.8909495,0.00023866,2]
[331586593,1720558232625,-4991.83159702,0.00023938,2]
[331586594,1720558232637,-278.28018874,0.00024,2]
[331586595,1720558232646,-153.0,0.0002445,2]
[331586596,1720558232656,-153.0,0.0002445,2]
[331586597,1720558232667,-880.11608907,0.00024481,2]
[331586598,1720558232678,-4781.155142,0.00024999,2]
[331586599,1720558232688,-154.60575532,0.00025047,2]
[331586600,1720558232698,-154.60575532,0.00025056,2]
[331586601,1720558232708,-5292.21400908,0.00025369,2]
[331586602,1720558232719,-1057.96115771,0.00025373,12]
[331586603,1720558232728,-3000.0,0.000254,2]
[331586604,1720558232740,-3109.52744949,0.000254,2]
[331586605,1720558232752,-153.0,0.00025409,2]
[331586606,1720558232763,-3000.0,0.0002541,2]
[331586607,1720558232772,-3000.0,0.0002542,2]
[331586608,1720558232783,-3000.0,0.0002543,2]
[331586609,1720558232795,-3000.0,0.0002544,2]
[331586610,1720558232807,-3000.0,0.0002545,2]
[331586611,1720558232819,-3000.0,0.0002546,2]
[331586612,1720558232830,-366.61198732,0.0002546,2]
[331586613,1720558232839,-3433.361356,0.0002547,2]
[331586614,1720558232849,-929.47,0.00025471,3]
[331586615,1720558232859,-7845.68,0.00025471,3]
[331586616,1720558232868,-464.74,0.00025471,3]
[331586617,1720558232878,-7744.07,0.00025481,3]
[331586618,1720558232888,-232.37,0.00025481,3]
[331586619,1720558232899,-16377.62283817,0.00025491,3]
[331586706,1720558238483,-9905.49,0.00025481,3]
[331586707,1720558238494,-23594.65954263,0.00025491,3]
[331586708,1720558238504,-9110.49991122,0.00025491,5]
[331586709,1720558238514,-3565.597424,0.00025491,7]
[331586710,1720558238523,-3565.597424,0.00025491,7]
[331586711,1720558238532,-79944.5647616,0.00025491,3]
[331586712,1720558238542,-160.0,0.000255,9]
[331586713,1720558238552,-275.0,0.000255,2]
[331586714,1720558238561,-173.605559,0.000255,2]
[331586715,1720558238570,-234.97070508,0.000255,2]
[331586716,1720558238580,-628.14591344,0.000255,2]
[331586717,1720558238591,-500.0,0.000255,2]
[331586718,1720558238601,-500.0,0.000255,2]
[331586719,1720558238675,-500.0,0.000255,2]
[331586720,1720558238685,-383.14738892,0.000255,2]
[331586721,1720558238695,-500.0,0.000255,2]
[331586722,1720558238704,-500.0,0.000255,2]
[331586723,1720558238714,-394.11469993,0.00025501,30]
[331586724,1720558238723,-1000.0,0.00025501,2]
[331586725,1720558238732,-5392.02527474,0.00025501,2]
[331586726,1720558238743,-763.79636746,0.00025501,2]
[331586727,1720558238753,-428.24738691,0.00025501,2]
[331586728,1720558238763,-1136.28120194,0.00025501,30]
[331586729,1720558238772,-225.71833691,0.00025501,2]
[331586730,1720558238781,-189.22156458,0.00025501,2]
[331586731,1720558238791,-151.0,0.00025501,7]
[331586732,1720558238799,-151.0,0.00025501,7]
[331586733,1720558238809,-151.0,0.00025501,7]
[331586734,1720558238818,-3565.597424,0.00025501,7]
[331586735,1720558238827,-3565.597424,0.00025501,7]
[331586736,1720558238837,-3565.597424,0.00025501,7]
[331586737,1720558238846,-3565.597424,0.00025501,7]
[331586738,1720558238856,-43731.55630725,0.00025501,2]
[331586739,1720558238866,-13468.44359236,0.00025501,2]
[331586740,1720558238876,-30000.0,0.00025501,2]
[331586741,1720558238885,-155.22827276,0.00025501,2]
[331586742,1720558238894,-435.0,0.00025501,2]
[331586743,1720558238904,-150.0,0.00025556,2]
[331586744,1720558238913,-208.54201475,0.00025557,2]
[331586745,1720558238923,-150.0,0.00025557,2]
[331586746,1720558238933,-760.18603286,0.00025627,12]
[331586747,1720558238943,-620.00302504,0.00025684,2]
[331586748,1720558238953,-3109.52744945,0.00025874,2]
[331586749,1720558238964,-302.69857441,0.00025902,2]
[331586750,1720558238973,-227.26279622,0.00025902,2]
[331586751,1720558238983,-500.0,0.00026,3]
[331586752,1720558238992,-1000.0,0.00026,26]
[331586753,1720558239009,-250.0,0.00026104,2]
[331586754,1720558239023,-250.0,0.00026105,2]
[331586755,1720558239034,-3109.52744945,0.00026349,2]
[331586756,1720558239045,-151.0,0.0002648,7]
[331586757,1720558239055,-3565.597424,0.0002648,7]
[331586758,1720558239066,-3565.597424,0.0002648,7]
[331586759,1720558239076,-7458.94652043,0.0002649,2]
[331586760,1720558239087,-39972.2823808,0.0002649,3]
[331586761,1720558239097,-3000.0,0.000265,2]
[331586762,1720558239108,-3000.0,0.0002651,2]
[331586763,1720558239118,-3000.0,0.0002652,2]
[331586764,1720558239128,-3000.0,0.0002653,2]
[331586765,1720558239139,-3000.0,0.0002654,2]
[331586766,1720558239149,-471.21439186,0.0002655,2]
[331586772,1720558240388,-697.12,0.00025481,3]
[331586773,1720558240398,-2528.78560814,0.0002655,2]
[331586774,1720558240408,-3000.0,0.0002656,2]
[331586775,1720558240418,-39972.2823808,0.00026569,3]
[331586776,1720558240428,-3000.0,0.0002657,2]
[331586777,1720558240438,-16577.00978115,0.0002657,3]
[331586839,1720558246652,-170.73911176,0.000255,2]
[331586840,1720558246663,-302.69857441,0.00025869,2]
[331586841,1720558246672,-23395.27259965,0.0002657,3]
[331586842,1720558246681,-1000.0,0.0002657,5]
[331586843,1720558246690,-1000.0,0.0002657,5]
[331586844,1720558246699,-1000.0,0.0002657,5]
[331586845,1720558246708,-1000.0,0.0002657,5]
[331586846,1720558246717,-1000.0,0.0002657,5]
[331586847,1720558246726,-1000.0,0.0002657,5]
[331586848,1720558246735,-1000.0,0.0002657,5]
[331586849,1720558246744,-1000.0,0.0002657,5]
[331586850,1720558246753,-1000.0,0.0002657,5]
[331586851,1720558246763,-1000.0,0.0002657,5]
[331586852,1720558246772,-1000.0,0.0002657,5]
[331586853,1720558246781,-1000.0,0.0002657,5]
[331586854,1720558246790,-1000.0,0.0002657,5]
[331586855,1720558246799,-1000.0,0.0002657,5]
[331586856,1720558246808,-1000.0,0.0002657,5]
[331586857,1720558246817,-1000.0,0.0002657,5]
[331586858,1720558246826,-1000.0,0.0002657,5]
[331586859,1720558246835,-1000.0,0.0002657,5]
[331586860,1720558246846,-1000.0,0.0002657,5]
[331586861,1720558246855,-1000.0,0.0002657,5]
[331586862,1720558246864,-1000.0,0.0002657,5]
[331586863,1720558246873,-1000.0,0.0002657,5]
[331586864,1720558246881,-1000.0,0.0002657,5]
[331586865,1720558246891,-1000.0,0.0002657,5]
[331586866,1720558246900,-1000.0,0.0002657,5]
[331586867,1720558246909,-1000.0,0.0002657,5]
[331586868,1720558246918,-1000.0,0.0002657,5]
[331586869,1720558246927,-1000.0,0.0002657,5]
[331586870,1720558246937,-1000.0,0.0002657,5]
[331586871,1720558246946,-1000.0,0.0002657,5]
[331586872,1720558246955,-1000.0,0.0002657,5]
[331586873,1720558246964,-1000.0,0.0002657,5]
[331586874,1720558246973,-1000.0,0.0002657,5]
[331586875,1720558246983,-1000.0,0.0002657,5]
[331586876,1720558246992,-1000.0,0.0002657,5]
[331586877,1720558247001,-1000.0,0.0002657,5]
[331586878,1720558247010,-151.0,0.00026579,7]
[331586879,1720558247019,-3565.597424,0.00026579,7]
[331586880,1720558247028,-3565.597424,0.00026579,7]
[331586881,1720558247037,-3000.0,0.0002658,2]
[331586882,1720558247047,-151.0,0.0002658,7]
[331586883,1720558247056,-3565.597424,0.0002658,7]
[331586884,1720558247065,-3565.597424,0.0002658,7]
[331586885,1720558247074,-150.0,0.0002659,2]
[331586886,1720558247084,-3000.0,0.0002659,2]
[331586887,1720558247093,-2058.61750007,0.000266,2]
[331586888,1720558247103,-3000.0,0.000266,2]
[331586889,1720558247112,-63322.41847446,0.00026602,5]
[331586890,1720558247121,-28364.62126002,0.00026602,3]
[331586891,1720558247137,-1202.26947249,0.00026602,3]
[331586923,1720559432612,-1065.65690458,0.0002,2]
[331586924,1720559432623,-293.45867215,0.0002,2]
[331586925,1720559432634,-154.60575532,0.0002,2]
[331586926,1720559432644,-187.66006725,0.00020445,2]
[331586927,1720559432653,-166.346275,0.00021096,2]
[331586928,1720559432664,-648.965788,0.00021096,2]
[331586929,1720559432673,-880.11608907,0.0002217,2]
[331586930,1720559432684,-188.0060383,0.00022183,2]
[331586931,1720559432695,-166.666666,0.00022452,2]
[331586932,1720559432758,-162.083833,0.00022944,2]
[331586933,1720559432771,-166.666666,0.00023983,2]
[331586934,1720559432781,-155.37408597,0.00025,2]
[331586935,1720559432791,-376.15458083,0.00025401,2]
[331586936,1720559432800,-3021.33099301,0.000255,3]
[331586937,1720559432811,-7863.58615536,0.00025501,2]
[331586963,1720559438599,-22136.41384464,0.00025501,2]
[331586965,1720559438609,-28050.36331026,0.00025501,2]
[331587019,1720559440657,-24085.85721544,0.00025501,2]
[331587020,1720559440672,-166.666666,0.00025513,2]
[331587021,1720559440689,-2000.0,0.00026,26]
[331587022,1720559440704,-865.0,0.00026,10]
[331587023,1720559440718,-215.31,0.00026185,2]
[331587024,1720559440733,-5292.21400908,0.00026357,2]
[331587025,1720559440748,-366.61198732,0.00026449,2]
[331587026,1720559440763,-493.8,0.00026481,3]
[331587028,1720559440777,-329.19,0.00026491,3]
[331587029,1720559440793,-164.59,0.00026491,3]
[331587030,1720559440808,-281.1,0.00026493,2]
[331587031,1720559440822,-658.38,0.00026501,3]
[331587032,1720559440836,-8254.57,0.00026511,3]